fUST/lending_fUST_20240313
["ID","MTS","AMOUNT","RATE_DAILY","PERIOD"]
[318676218,1710342636150,-7755.11,0.00019317,2]
[318676219,1710342636160,-7755.11,0.00019317,2]
[318676220,1710342636170,-2226.69,0.00019317,2]
[318676221,1710342636180,-2226.69,0.00019317,2]
[318676222,1710342636191,-2226.69,0.00019317,2]
[318676223,1710342636201,-500.0,0.00019317,2]
[318676224,1710342636210,-500.0,0.00019317,2]
[318676225,1710342636220,-500.0,0.00019317,2]
[318676226,1710342636230,-1449.49,0.00019317,2]
[318676227,1710342636239,-1449.49,0.00019317,2]
[318676228,1710342636249,-1449.49,0.00019317,2]
[318676229,1710342636258,-155.11323266,0.00019317,2]
[318676230,1710342636268,-155.19707514,0.00019318,2]
[318676231,1710342636277,-191.38327133,0.00019318,2]
[318676232,1710342636287,-186.73102555,0.00019318,2]
[318676233,1710342636296,-465.88759223,0.00019318,2]
[318676234,1710342636305,-6305.80121884,0.00019318,2]
[318676352,1710342638372,-740.64774421,0.00015535,2]
[318676363,1710342638461,-188.35546194,0.00015535,2]
[318676365,1710342638471,-186.44898587,0.00019318,2]
[318676367,1710342638483,-416.42424309,0.00019318,2]
[318676369,1710342638495,-11254.8083292,0.00019318,2]
[318676371,1710342638506,-155.11944197,0.00019318,2]
[318676373,1710342638517,-3081.86656379,0.00019318,2]
[318676376,1710342638527,-515.53,0.00019318,2]
[318676378,1710342638537,-515.53,0.00019318,2]
[318676380,1710342638548,-515.53,0.00019318,2]
[318676381,1710342638557,-515.53,0.00019318,2]
[318676383,1710342638567,-515.53,0.00019318,2]
[318676385,1710342638577,-515.53,0.00019318,2]
[318676388,1710342638586,-7755.11,0.00019318,2]
[318676389,1710342638595,-7755.11,0.00019318,2]
[318676391,1710342638605,-7755.11,0.00019318,2]
[318676393,1710342638619,-7755.11,0.00019318,2]
[318676396,1710342638630,-2226.69,0.00019318,2]
[318676398,1710342638641,-2226.69,0.00019318,2]
[318676400,1710342638650,-2226.69,0.00019318,2]
[318676402,1710342638660,-2226.69,0.00019318,2]
[318676403,1710342638669,-500.0,0.00019318,2]
[318676406,1710342638679,-361.5295042,0.00019318,2]
[318676408,1710342638690,-1449.49,0.00019318,2]
[318676410,1710342638699,-1449.49,0.00019318,2]
[318676412,1710342638709,-1449.49,0.00019318,2]
[318676414,1710342638720,-1449.49,0.00019318,2]
[318676415,1710342638730,-515.53,0.00019319,2]
[318676418,1710342638739,-500.0,0.00019342,2]
[318676419,1710342638748,-746.21795384,0.00019361,2]
[318676422,1710342638758,-269.30134824,0.00019361,2]
[318676424,1710342638768,-429.45007321,0.00019362,2]
[318676426,1710342638777,-2485.121967,0.00019363,2]
[318676428,1710342638787,-2485.121967,0.00019363,2]
[318676429,1710342638796,-2485.121967,0.00019363,2]
[318676432,1710342638806,-2485.121967,0.00019363,2]
[318676434,1710342638815,-2485.121967,0.00019363,2]
[318676435,1710342638824,-2485.121967,0.00019363,2]
[318676437,1710342638833,-2485.121967,0.00019363,2]
[318676439,1710342638843,-2485.121967,0.00019363,2]
[318676441,1710342638852,-2485.121967,0.00019363,2]
[318676443,1710342638864,-2485.121967,0.00019363,2]
[318676445,1710342638873,-2485.121967,0.00019363,2]
[318676447,1710342638883,-364.09514855,0.00019363,2]
[318676699,1710342640515,-2121.02681845,0.00019363,2]
[318676702,1710342640525,-2485.121967,0.00019363,2]
[318676705,1710342640534,-2485.121967,0.00019363,2]
[318676708,1710342640545,-504.10002846,0.00019363,2]
[318676711,1710342640558,-1981.02193854,0.00019363,2]
[318676712,1710342640567,-2485.121967,0.00019363,2]
[318676714,1710342640576,-2485.121967,0.00019363,2]
[318676716,1710342640585,-1923.60294108,0.00019363,2]
[318676719,1710342640595,-561.51902592,0.00019363,2]
[318676721,1710342640603,-2485.121967,0.00019363,2]
[318676723,1710342640615,-2485.121968,0.00019363,2]
[318676724,1710342640624,-515.53,0.00019363,2]
[318676726,1710342640633,-515.53,0.00019363,2]
[318676728,1710342640644,-515.53,0.00019363,2]
[318676730,1710342640653,-515.53,0.00019363,2]
[318676732,1710342640662,-515.53,0.00019363,2]
[318676734,1710342640672,-515.61,0.00019363,2]
[318676736,1710342640682,-7755.11,0.00019363,2]
[318676739,1710342640692,-7755.11,0.00019363,2]
[318676741,1710342640703,-731.53798633,0.00019363,2]
[318676951,1710342643461,-313.08000006,0.00019118,2]
[318677001,1710343659480,1000.0,0.00025,120]
[318677002,1710343668205,1000.0,0.00024,120]
[318677003,1710343677041,1000.0,0.00023,99]
[318677004,1710343688493,1000.0,0.00022,120]
[318677005,1710343703752,1000.0,0.00021,90]
[318677062,1710343833413,-929.00320615,0.00017505,2]
[318677064,1710343833423,-204.80125661,0.00017505,2]
[318677066,1710343833433,-2857.24914318,0.00017506,2]
[318677068,1710343833446,-4751.54910424,0.00017506,2]
[318677088,1710343833761,-17291.20175258,0.00017506,2]
[318677089,1710343833771,-427.922629,0.00017523,2]
[318677090,1710343833783,-776.17449134,0.00017894,2]
[318677091,1710343833793,-2000.0,0.00018199,2]
[318677092,1710343833802,-304.88869119,0.00018393,2]
[318677093,1710343833815,-3207.0,0.00019,2]
[318677094,1710343833825,-13012.14805075,0.00019118,2]
[318677095,1710343833837,-500.0,0.00019178,2]
[318677096,1710343833846,-337.392874,0.00019178,2]
[318677097,1710343833860,-166.666666,0.00019178,2]
[318677098,1710343833870,-500.0,0.00019232,2]
[318677099,1710343833880,-2168.31507827,0.00019265,2]
[318677100,1710343833890,-1385.69126363,0.00019265,2]
[318677101,1710343833899,-500.0,0.00019287,2]
[318677102,1710343833909,-500.0,0.00019313,2]
[318677103,1710343833919,-500.0,0.00019313,2]
[318677104,1710343833928,-155.14583709,0.00019316,2]
[318677105,1710343833939,-500.0,0.00019342,2]
[318677106,1710343833948,-1638.84914323,0.00019343,2]
[318677107,1710343834002,-320.2730549,0.00019362,2]
[318677108,1710343834012,-155.14583709,0.00019362,2]
[318677109,1710343834021,-155.26843768,0.00019362,2]
[318677110,1710343834031,-224.02999257,0.00019362,2]
[318677111,1710343834041,-187.37817515,0.00019362,2]
[318677112,1710343834050,-442.64155494,0.00019362,2]
[318677113,1710343834060,-155.36626228,0.00019362,2]
[318677114,1710343834071,-719.03815529,0.00019362,2]
[318677115,1710343834081,-290.02768238,0.00019362,2]
[318677116,1710343834090,-186.73102555,0.00019362,2]
[318677117,1710343834099,-280.03744834,0.00019362,2]
[318677118,1710343834109,-155.53669994,0.00019362,2]
[318677119,1710343834118,-9264.3781364,0.00019362,2]
[318677120,1710343834128,-331.73872667,0.00019362,2]
[318677121,1710343834137,-616.12960483,0.00019362,2]
[318677122,1710343834146,-500.0,0.00019363,2]
[318677123,1710343834155,-598.3856596,0.00019363,2]
[318677124,1710343834165,-690.73115949,0.00019363,2]
[318677125,1710343834174,-3949.68,0.00019364,2]
[318677126,1710343834184,-3949.68,0.00019364,2]
[318677127,1710343834193,-3949.68,0.00019364,2]
[318677128,1710343834202,-556.67,0.00019364,2]
[318677129,1710343834302,-556.67,0.00019364,2]
[318677130,1710343834320,-556.67,0.00019364,2]
[318677131,1710343834329,-500.0,0.00019364,2]
[318677132,1710343834338,-500.0,0.00019364,2]
[318677133,1710343834348,-500.0,0.00019364,2]
[318677134,1710343834356,-500.0,0.00019364,2]
[318677135,1710343834366,-300.26794985,0.00019364,2]
[318677136,1710343834375,-151.0,0.00019365,2]
[318677137,1710343834385,-151.0,0.00019365,2]
[318677138,1710343834394,-151.0,0.00019365,2]
[318677139,1710343834403,-151.0,0.00019365,2]
[318677140,1710343834413,-151.0,0.00019365,2]
[318677141,1710343834422,-151.0,0.00019365,2]
[318677142,1710343834432,-151.0,0.00019365,2]
[318677143,1710343834442,-151.0,0.00019365,2]
[318677144,1710343834452,-151.0,0.00019365,2]
[318677145,1710343834461,-151.0,0.00019365,2]
[318677146,1710343834471,-151.0,0.00019365,2]
[318677147,1710343834481,-151.0,0.00019365,2]
[318677148,1710343834490,-224.323332,0.00019365,2]
[318677149,1710343834500,-3949.68,0.00019365,2]
[318677150,1710343834509,-3949.68,0.00019365,2]
[318677151,1710343834519,-3949.68,0.00019365,2]
[318677152,1710343834528,-3949.68,0.00019365,2]
[318677153,1710343834537,-3949.68,0.00019365,2]
[318677154,1710343834546,-3949.68,0.00019365,2]
[318677155,1710343834554,-3949.68,0.00019365,2]
[318677156,1710343834563,-3949.68,0.00019365,2]
[318677157,1710343834572,-3949.68,0.00019365,2]
[318677158,1710343834581,-3949.68,0.00019365,2]
[318677159,1710343834590,-3949.68,0.00019365,2]
[318677160,1710343834598,-3949.68,0.00019365,2]
[318677161,1710343834607,-3949.68,0.00019365,2]
[318677162,1710343834616,-3949.68,0.00019365,2]
[318677163,1710343834625,-3949.68,0.00019365,2]
[318677164,1710343834634,-3949.68,0.00019365,2]
[318677165,1710343834643,-3949.68,0.00019365,2]
[318677166,1710343834652,-3949.68,0.00019365,2]
[318677167,1710343834662,-3949.68,0.00019365,2]
[318677168,1710343834671,-3949.68,0.00019365,2]
[318677169,1710343834680,-3949.85048627,0.00019365,2]
[318677170,1710343834689,-556.67,0.00019365,2]
[318677171,1710343834698,-556.67,0.00019365,2]
[318677172,1710343834708,-556.67,0.00019365,2]
[318677173,1710343834717,-556.67,0.00019365,2]
[318677174,1710343834727,-556.67,0.00019365,2]
[318677175,1710343834736,-556.67,0.00019365,2]
[318677176,1710343834745,-556.67,0.00019365,2]
[318677177,1710343834755,-556.67,0.00019365,2]
[318677178,1710343834764,-556.67,0.00019365,2]
[318677179,1710343834773,-556.67,0.00019365,2]
[318677180,1710343834783,-556.67,0.00019365,2]
[318677181,1710343834792,-556.67,0.00019365,2]
[318677182,1710343834801,-556.67,0.00019365,2]
[318677183,1710343834811,-556.67,0.00019365,2]
[318677184,1710343834821,-556.67,0.00019365,2]
[318677185,1710343834830,-556.67,0.00019365,2]
[318677186,1710343834840,-556.67,0.00019365,2]
[318677187,1710343834850,-556.67,0.00019365,2]
[318677188,1710343834860,-556.67,0.00019365,2]
[318677189,1710343834870,-556.67,0.00019365,2]
[318677190,1710343834882,-556.75156002,0.00019365,2]
[318677191,1710343834892,-500.0,0.00019365,2]
[318677192,1710343834903,-500.0,0.00019365,2]
[318677193,1710343834913,-500.0,0.00019365,2]
[318677194,1710343834923,-500.0,0.00019365,2]
[318677195,1710343834933,-500.0,0.00019365,2]
[318677196,1710343834942,-500.0,0.00019365,2]
[318677197,1710343834953,-500.0,0.00019365,2]
[318677198,1710343834964,-500.0,0.00019365,2]
[318677199,1710343834974,-500.0,0.00019365,2]
[318677200,1710343834984,-500.0,0.00019365,2]
[318677201,1710343834993,-500.0,0.00019365,2]
[318677202,1710343835003,-500.0,0.00019365,2]
[318677203,1710343835013,-500.0,0.00019365,2]
[318677204,1710343835023,-500.0,0.00019365,2]
[318677205,1710343835032,-197.1063015,0.00019365,2]
[318677206,1710343835043,-500.0,0.00019365,2]
[318677207,1710343835054,-500.0,0.00019365,2]
[318677208,1710343835064,-500.0,0.00019365,2]
[318677209,1710343835074,-500.0,0.00019365,2]
[318677210,1710343835096,-500.0,0.00019377,2]
[318677211,1710343835108,-453.78160906,0.00019377,2]
[318677212,1710343835119,-638.86260486,0.00019377,2]
[318677213,1710343835129,-2049643.21627249,0.00019378,60]
[318677214,1710343835146,-6397.53192647,0.00019378,60]
[318677215,1710343835167,-10304.89,0.00019378,60]
[318677216,1710343835180,-404.10462889,0.00019378,60]
[318677217,1710343835192,-2561.08695129,0.00019378,60]
[318677264,1710343838699,-5096.03753838,0.00019378,60]
[318677656,1710343844054,-213.961314,0.00018378,2]
[318677658,1710343844063,-523.25252966,0.00019265,2]
[318677660,1710343844073,-7058.9171488,0.00019378,60]
[318677662,1710343844084,-15000.0,0.00019378,60]
[318678105,1710343849788,-4472.65969232,0.00018378,2]
[318678106,1710343849801,-1577.8,0.00018378,2]
[318678107,1710343849830,-1127.33107,0.00018378,2]
[318678108,1710344046916,-49728.69770763,0.00019378,60]
[318678109,1710344046945,-3950271.30229237,0.00019378,60]
[318678110,1710344068344,-239.64745728,0.00019388,120]
[318678111,1710344068370,-6180.7807047,0.00019388,120]
[318678112,1710344068395,-6393.58565527,0.00019388,120]
[318678113,1710344068423,-14035.54895762,0.00019388,120]
[318678114,1710344068449,-5206.06500562,0.00019388,120]
[318678115,1710344068475,-2000.0,0.00019388,120]
[318678184,1710345032702,-528.93081481,0.0001704,2]
[318678186,1710345032712,-204.80125661,0.00017041,2]
[318678187,1710345032721,-155.11323266,0.00017042,2]
[318678189,1710345032731,-24900.0,0.00017044,2]
[318678191,1710345032740,-308.2187328,0.00017093,2]
[318678193,1710345032749,-186.73102555,0.00017815,2]
[318678195,1710345032759,-2000.0,0.00017955,2]
[318678197,1710345032768,-246.444181,0.00017996,2]
[318678199,1710345032777,-300.0,0.00018004,2]
[318678201,1710345032786,-10146.4053309,0.00018239,2]
[318678203,1710345032796,-2707.795506,0.00018456,2]
[318678205,1710345032810,-638.68211759,0.000189,2]
[318678207,1710345032820,-1603.0,0.00019,2]
[318678209,1710345032830,-500.0,0.00019178,2]
[318678211,1710345032839,-166.666666,0.00019178,2]
[318678213,1710345032848,-320.52323,0.00019178,2]
[318678215,1710345032857,-500.0,0.00019232,2]
[318678217,1710345032867,-392.77476629,0.00019277,2]
[318678219,1710345032876,-3544.0644834,0.00019278,2]
[318678221,1710345032885,-392.77476629,0.0001928,2]
[318678223,1710345032894,-392.77476629,0.00019283,2]
[318678225,1710345032903,-392.77476629,0.00019285,2]
[318678226,1710345032912,-500.0,0.00019287,2]
[318678228,1710345032922,-392.77476629,0.00019288,2]
[318678230,1710345032931,-500.0,0.00019342,2]
[318678232,1710345032941,-500.0,0.00019363,2]
[318678234,1710345032950,-502.9111675,0.00019363,2]
[318678236,1710345032959,-500.0,0.00019363,2]
[318678238,1710345032968,-500.0,0.00019363,2]
[318678240,1710345032978,-266.5844942,0.00019363,2]
[318678242,1710345032987,-500.0,0.00019363,2]
[318678244,1710345032996,-500.0,0.00019363,2]
[318678246,1710345033006,-627.82,0.00019363,2]
[318678248,1710345033015,-627.82,0.00019363,2]
[318678250,1710345033024,-192.41512079,0.00019363,2]
[318678252,1710345033033,-500.0,0.00019363,2]
[318678253,1710345033042,-500.0,0.00019363,2]
[318678255,1710345033051,-500.0,0.00019363,2]
[318678257,1710345033063,-500.0,0.00019363,2]
[318678259,1710345033072,-624.0422875,0.00019363,2]
[318678261,1710345033082,-500.0,0.00019363,2]
[318678263,1710345033091,-500.0,0.00019363,2]
[318678265,1710345033100,-500.0,0.00019363,2]
[318678267,1710345033113,-500.0,0.00019363,2]
[318678269,1710345033122,-500.0,0.00019363,2]
[318678271,1710345033131,-500.0,0.00019363,2]
[318678273,1710345033140,-500.0,0.00019363,2]
[318678275,1710345033149,-295.97236771,0.00019363,2]
[318678277,1710345033159,-161.18566081,0.00019363,2]
[318678278,1710345033168,-500.0,0.00019363,2]
[318678279,1710345033177,-500.0,0.00019363,2]
[318678280,1710345033187,-500.0,0.00019363,2]
[318678281,1710345033197,-500.0,0.00019363,2]
[318678282,1710345033206,-500.0,0.00019363,2]
[318678283,1710345033215,-500.0,0.00019363,2]
[318678284,1710345033227,-500.0,0.00019363,2]
[318678285,1710345033237,-500.0,0.00019363,2]
[318678286,1710345033246,-500.0,0.00019363,2]
[318678287,1710345033255,-500.0,0.00019363,2]
[318678288,1710345033265,-500.0,0.00019363,2]
[318678289,1710345033274,-500.0,0.00019363,2]
[318678290,1710345033283,-500.0,0.00019363,2]
[318678291,1710345033293,-500.0,0.00019363,2]
[318678292,1710345033302,-500.0,0.00019363,2]
[318678293,1710345033314,-500.0,0.00019363,2]
[318678294,1710345033323,-491.51760649,0.00019363,2]
[318678295,1710345033332,-500.0,0.00019363,2]
[318678296,1710345033342,-500.65082773,0.00019363,2]
[318678297,1710345033351,-151.0,0.00019363,2]
[318678298,1710345033360,-151.0,0.00019363,2]
[318678299,1710345033369,-500.0,0.00019364,2]
[318678300,1710345033378,-500.0,0.00019364,2]
[318678301,1710345033387,-500.0,0.00019364,2]
[318678302,1710345033396,-500.0,0.00019364,2]
[318678303,1710345033405,-627.82,0.00019364,2]
[318678304,1710345033414,-627.82,0.00019364,2]
[318678305,1710345033424,-500.0,0.00019364,2]
[318678306,1710345033433,-500.0,0.00019364,2]
[318678307,1710345033442,-500.0,0.00019364,2]
[318678308,1710345033451,-500.0,0.00019364,2]
[318678309,1710345033460,-500.0,0.00019364,2]
[318678310,1710345033470,-500.0,0.00019364,2]
[318678311,1710345033480,-500.0,0.00019364,2]
[318678312,1710345033489,-500.0,0.00019364,2]
[318678313,1710345033498,-500.0,0.00019364,2]
[318678314,1710345033507,-500.0,0.00019364,2]
[318678315,1710345033516,-309.47329727,0.00019364,2]
[318678316,1710345033525,-500.0,0.00019364,2]
[318678317,1710345033534,-500.0,0.00019364,2]
[318678318,1710345033543,-500.0,0.00019364,2]
[318678319,1710345033552,-500.0,0.00019364,2]
[318678320,1710345033563,-500.0,0.00019364,2]
[318678321,1710345033572,-540.96040326,0.00019364,2]
[318678322,1710345033581,-500.0,0.00019364,2]
[318678323,1710345033590,-500.0,0.00019364,2]
[318678324,1710345033600,-500.0,0.00019364,2]
[318678325,1710345033609,-500.0,0.00019364,2]
[318678326,1710345033618,-479.48585433,0.00019364,2]
[318678327,1710345033628,-500.0,0.00019375,2]
[318678328,1710345033637,-500.0,0.00019375,2]
[318678329,1710345033647,-500.57300094,0.00019375,2]
[318678330,1710345033657,-500.0,0.00019375,2]
[318678331,1710345033666,-500.0,0.00019375,2]
[318678332,1710345033675,-500.0,0.00019375,2]
[318678333,1710345033684,-500.0,0.00019375,2]
[318678334,1710345033694,-500.0,0.00019375,2]
[318678335,1710345033703,-500.0,0.00019375,2]
[318678336,1710345033712,-500.0,0.00019375,2]
[318678337,1710345033721,-500.0,0.00019375,2]
[318678338,1710345033731,-500.0,0.00019375,2]
[318678339,1710345033740,-500.0,0.00019375,2]
[318678340,1710345033749,-500.0,0.00019375,2]
[318678341,1710345033758,-500.0,0.00019375,2]
[318678342,1710345033767,-500.0,0.00019375,2]
[318678343,1710345033777,-500.0,0.00019375,2]
[318678344,1710345033786,-1484.01,0.00019375,2]
[318678345,1710345033795,-1484.01,0.00019375,2]
[318678346,1710345033804,-502.39425469,0.00019375,2]
[318678347,1710345033814,-928.63688525,0.00019376,2]
[318678348,1710345033823,-186.73102555,0.00019376,2]
[318678349,1710345033832,-1473.66141674,0.00019376,2]
[318678350,1710345033841,-2114.14349051,0.00019376,2]
[318678351,1710345033849,-158.04183342,0.00019376,2]
[318678352,1710345033858,-3496.18907159,0.00019376,2]
[318678353,1710345033867,-538.93657172,0.00019376,2]
[318678354,1710345033876,-290.38682753,0.00019376,2]
[318678355,1710345033885,-155.10081553,0.00019376,2]
[318678356,1710345033894,-500.0,0.00019376,2]
[318678357,1710345033903,-340.56974221,0.00019376,2]
[318678358,1710345033911,-500.0,0.00019376,2]
[318678359,1710345033920,-500.0,0.00019376,2]
[318678360,1710345033929,-500.0,0.00019376,2]
[318678361,1710345033938,-500.0,0.00019376,2]
[318678362,1710345033947,-500.0,0.00019376,2]
[318678363,1710345033956,-500.0,0.00019376,2]
[318678364,1710345033965,-500.0,0.00019376,2]
[318678365,1710345033974,-256.19967196,0.00019376,2]
[318678366,1710345033983,-500.0,0.00019376,2]
[318678367,1710345033991,-500.0,0.00019376,2]
[318678368,1710345034000,-500.0,0.00019376,2]
[318678369,1710345034009,-500.0,0.00019376,2]
[318678370,1710345034019,-500.0,0.00019376,2]
[318678371,1710345034027,-500.0,0.00019376,2]
[318678372,1710345034037,-1484.01,0.00019376,2]
[318678373,1710345034045,-1484.01,0.00019376,2]
[318678374,1710345034054,-239.9652503,0.00019376,2]
[318678375,1710345034065,-500.0,0.00019377,2]
[318678376,1710345034073,-500.0,0.00019377,2]
[318678377,1710345034159,-500.0,0.00019377,2]
[318678378,1710345034169,-500.0,0.00019377,2]
[318678379,1710345034178,-500.0,0.00019377,2]
[318678380,1710345034187,-502.88242045,0.00019377,2]
[318678381,1710345034200,-500.0,0.00019377,2]
[318678382,1710345034209,-317.04693058,0.00019377,2]
[318678383,1710345034218,-627.82,0.00019377,2]
[318678384,1710345034227,-627.82,0.00019377,2]
[318678385,1710345034238,-627.82,0.00019377,2]
[318678386,1710345034247,-627.82,0.00019377,2]
[318678387,1710345034256,-627.82,0.00019377,2]
[318678388,1710345034267,-627.82,0.00019377,2]
[318678389,1710345034276,-627.82,0.00019377,2]
[318678390,1710345034285,-627.82,0.00019377,2]
[318678391,1710345034294,-627.82,0.00019377,2]
[318678392,1710345034304,-627.82,0.00019377,2]
[318678393,1710345034314,-627.82,0.00019377,2]
[318678394,1710345034323,-627.82,0.00019377,2]
[318678395,1710345034332,-627.82,0.00019377,2]
[318678396,1710345034342,-627.82,0.00019377,2]
[318678397,1710345034351,-627.82,0.00019377,2]
[318678398,1710345034361,-627.82,0.00019377,2]
[318678399,1710345034370,-627.82,0.00019377,2]
[318678400,1710345034379,-627.82,0.00019377,2]
[318678401,1710345034388,-627.82,0.00019377,2]
[318678402,1710345034397,-627.84,0.00019377,2]
[318678403,1710345034406,-500.0,0.00019377,2]
[318678404,1710345034415,-500.0,0.00019377,2]
[318678405,1710345034424,-500.0,0.00019377,2]
[318678406,1710345034433,-500.0,0.00019377,2]
[318678407,1710345034442,-500.0,0.00019377,2]
[318678408,1710345034451,-500.0,0.00019377,2]
[318678409,1710345034460,-217.4,0.00019377,2]
[318678410,1710345034469,-500.0,0.00019377,2]
[318678411,1710345034478,-500.0,0.00019377,2]
[318678412,1710345034488,-500.0,0.00019377,2]
[318678413,1710345034497,-379.3701981,0.00019377,2]
[318678414,1710345034506,-500.0,0.00019377,2]
[318678415,1710345034516,-500.0,0.00019377,2]
[318678416,1710345034526,-500.0,0.00019377,2]
[318678417,1710345034535,-500.0,0.00019377,2]
[318678418,1710345034544,-500.0,0.00019377,2]
[318678419,1710345034553,-256.63551492,0.00019377,2]
[318678420,1710345034563,-500.0,0.00019377,2]
[318678421,1710345034572,-500.0,0.00019377,2]
[318678422,1710345034581,-579.26410618,0.00019377,2]
[318678423,1710345034590,-500.0,0.00019377,2]
[318678424,1710345034600,-500.0,0.00019377,2]
[318678425,1710345034609,-500.0,0.00019377,2]
[318678426,1710345034618,-500.0,0.00019377,2]
[318678427,1710345034627,-500.0,0.00019377,2]
[318678428,1710345034637,-500.0,0.00019377,2]
[318678429,1710345034646,-500.0,0.00019377,2]
[318678430,1710345034656,-500.0,0.00019377,2]
[318678431,1710345034665,-448.43668036,0.00019377,2]
[318678432,1710345034675,-500.0,0.00019377,2]
[318678433,1710345034684,-500.0,0.00019377,2]
[318678434,1710345034694,-500.0,0.00019377,2]
[318678435,1710345034704,-500.0,0.00019377,2]
[318678436,1710345034714,-500.0,0.00019377,2]
[318678437,1710345034723,-500.0,0.00019377,2]
[318678438,1710345034733,-500.0,0.00019377,2]
[318678439,1710345034742,-500.0,0.00019377,2]
[318678440,1710345034752,-360.3,0.00019377,2]
[318678441,1710345034761,-500.0,0.00019377,2]
[318678442,1710345034771,-500.0,0.00019377,2]
[318678443,1710345034780,-500.0,0.00019377,2]
[318678444,1710345034789,-500.0,0.00019377,2]
[318678445,1710345034798,-500.0,0.00019377,2]
[318678446,1710345034808,-500.0,0.00019377,2]
[318678447,1710345034819,-500.0,0.00019377,2]
[318678448,1710345034829,-500.0,0.00019377,2]
[318678449,1710345034838,-500.0,0.00019377,2]
[318678450,1710345034848,-500.0,0.00019377,2]
[318678451,1710345034857,-500.0,0.00019377,2]
[318678452,1710345034867,-500.0,0.00019377,2]
[318678453,1710345034876,-500.0,0.00019377,2]
[318678454,1710345034885,-500.0,0.00019377,2]
[318678455,1710345034895,-500.0,0.00019377,2]
[318678456,1710345034905,-500.0,0.00019377,2]
[318678457,1710345034914,-500.0,0.00019377,2]
[318678458,1710345034924,-500.0,0.00019377,2]
[318678459,1710345034934,-524.4,0.00019377,2]
[318678460,1710345034943,-504.34008846,0.00019377,2]
[318678461,1710345034953,-250.0,0.0001938,14]
[318678462,1710345034962,-250.0,0.0001938,21]
[318678463,1710345034972,-644.67484635,0.00019386,2]
[318678464,1710345034981,-558.67605724,0.00019386,2]
[318678465,1710345034991,-155.11478494,0.00019386,2]
[318678466,1710345035000,-212.15239579,0.00019386,2]
[318678467,1710345035009,-404.72362458,0.00019386,2]
[318678468,1710345035019,-155.11633725,0.00019386,2]
[318678469,1710345035029,-704.36144243,0.00019386,2]
[318678470,1710345035038,-15265.62274168,0.00019387,2]
[318678471,1710345035048,-500.0,0.00019387,2]
[318678472,1710345035058,-500.0,0.00019387,2]
[318678473,1710345035071,-500.0,0.00019387,2]
[318678474,1710345035081,-500.0,0.00019387,2]
[318678475,1710345035091,-500.0,0.00019387,2]
[318678476,1710345035102,-500.0,0.00019387,2]
[318678477,1710345035111,-500.0,0.00019387,2]
[318678478,1710345035121,-500.0,0.00019387,2]
[318678479,1710345035132,-500.0,0.00019387,2]
[318678480,1710345035142,-500.0,0.00019387,2]
[318678481,1710345035151,-500.0,0.00019387,2]
[318678482,1710345035161,-500.0,0.00019387,2]
[318678483,1710345035171,-500.0,0.00019387,2]
[318678484,1710345035181,-500.0,0.00019387,2]
[318678485,1710345035192,-500.0,0.00019387,2]
[318678486,1710345035202,-500.0,0.00019387,2]
[318678487,1710345035214,-500.0,0.00019387,2]
[318678488,1710345035228,-500.0,0.00019387,2]
[318678489,1710345035238,-407.04,0.00019387,2]
[318678490,1710345035248,-500.0,0.00019387,2]
[318678491,1710345035259,-500.0,0.00019387,2]